fUSD/lending_fUSD_20250525
["ID","MTS","AMOUNT","RATE_DAILY","PERIOD"]
[362307078,1748177450572,-420.0,0.00019999,2]
[362307080,1748177450581,-420.0,0.00019999,2]
[362307082,1748177450591,-420.0,0.00019999,2]
[362307084,1748177450603,-420.0,0.00019999,2]
[362307086,1748177450616,-420.0,0.00019999,2]
[362307088,1748177450626,-420.0,0.00019999,2]
[362307090,1748177450636,-420.0,0.00019999,2]
[362307091,1748177450646,-420.0,0.00019999,2]
[362307094,1748177450656,-447.63,0.00019999,2]
[362307096,1748177450667,-448.211,0.00019999,2]
[362307098,1748177450679,-567.0,0.0002,2]
[362307100,1748177450689,-51955.78336439,0.0002,2]
[362307102,1748177450699,-141255.1050779,0.0002,2]
[362307105,1748177450719,-54000.0,0.0002,2]
[362307107,1748177450731,-49030.63768025,0.0002,2]
[362307119,1748177450836,-223.31644275,0.0002,2]
[362307122,1748177450851,-861.95746775,0.0002,2]
[362307124,1748177450863,-1228.9735752,0.0002,2]
[362307126,1748177450874,-2379.26069818,0.0002,2]
[362307128,1748177450886,-2833.36677977,0.0002,2]
[362307143,1748177451022,-306.08543742,0.00019799,2]
[362307148,1748177451059,-113.91456258,0.00019799,2]
[362307150,1748177451069,-420.0,0.00019995,2]
[362307152,1748177451079,-420.0,0.00019995,2]
[362307154,1748177451089,-420.0,0.00019997,2]
[362307156,1748177451099,-420.0,0.00019998,2]
[362307158,1748177451108,-420.0,0.00019999,2]
[362307160,1748177451118,-420.0,0.00019999,2]
[362307162,1748177451127,-8991.35231522,0.0002,2]
[362307166,1748177451151,-420.0,0.00019999,2]
[362307168,1748177451161,-77406.70239145,0.0002,2]
[362307170,1748177451178,-21485.96451028,0.0002,2]
[362307179,1748177451309,-151.0,0.00017435,2]
[362307180,1748177451319,-420.0,0.00019799,2]
[362307181,1748177451329,-5141.42216138,0.000199,2]
[362307182,1748177451339,-420.0,0.00019995,2]
[362307183,1748177451349,-420.0,0.00019995,2]
[362307184,1748177451358,-152.514291,0.00019996,2]
[362307185,1748177451367,-420.0,0.00019999,2]
[362307187,1748177451377,-420.0,0.00019999,2]
[362307189,1748177451386,-420.0,0.00019999,2]
[362307191,1748177451396,-420.0,0.00019999,2]
[362307193,1748177451406,-420.0,0.00019999,2]
[362307195,1748177451416,-420.0,0.00019999,2]
[362307197,1748177451426,-193.86,0.00019999,2]
[362307199,1748177451436,-12094.06621982,0.0002,2]
[362307654,1748177637912,-159.6993565,0.00016973,2]
[362307655,1748177640550,-271.4979275,0.00016973,2]
[362307656,1748177644364,-186.162716,0.00016973,2]
[362307657,1748177801275,-1000.0,0.0002688,120]
[362307658,1748177801314,-1000.0,0.00027,120]
[362307659,1748177896519,-1000.0,0.00026,60]
[362307660,1748177999631,-1000.0,0.00024,30]
[362307661,1748178436125,-200.0,0.00017937,2]
[362307662,1748178436147,-250.0,0.00018031,2]
[362307663,1748178436168,-206.0,0.00018126,2]
[362307664,1748178436190,-205.99998,0.00018126,2]
[362307665,1748178436211,-209.30344824,0.00018632,2]
[362307666,1748178436231,-167.1,0.00018656,2]
[362307667,1748178436253,-200.0,0.00018671,2]
[362307668,1748178436274,-200.0,0.00018675,2]
[362307669,1748178436295,-97.92663034,0.00018716,2]
[362307670,1748178437165,-378.02176391,0.00018716,2]
[362307671,1748178442096,-524.05160575,0.00018716,2]
[362307672,1748178442117,-150.0,0.00018732,2]
[362307673,1748178442138,-230.25101231,0.00018753,2]
[362307675,1748178516690,466.33,0.00013699,2]
[362307676,1748178562056,250.0,0.00015,2]
[362307677,1748178564097,-203.252,0.00017,2]
[362307678,1748178564125,-96.748,0.00017,2]
[362307679,1748178631985,-209.30344823,0.00018675,2]
[362307681,1748178631996,-1174.91,0.00018732,2]
[362307683,1748178632007,-1713.29898769,0.00018753,2]
[362307685,1748178632017,-154.87,0.00018775,2]
[362307686,1748178632027,-300.0,0.00018776,2]
[362307687,1748178632036,-300.0,0.00018776,2]
[362307688,1748178632045,-300.0,0.00018777,2]
[362307689,1748178632055,-1200.0,0.00018777,2]
[362307690,1748178632065,-7869.81450679,0.00018778,2]
[362307691,1748178632077,-2545.62,0.00018778,2]
[362307692,1748178632088,-563.67549321,0.00018778,2]
[362307693,1748178632098,-473.47,0.00018795,2]
[362307694,1748178632108,-207.4,0.00018999,2]
[362307695,1748178632118,-350.0,0.00019,2]
[362307696,1748178632127,-502.23218378,0.00019068,2]
[362307697,1748178632136,-600.0,0.000191,6]
[362307698,1748178632146,-1200.0,0.000192,7]
[362307699,1748178632155,-617.36,0.00019237,2]
[362307700,1748178632164,-209.30344823,0.00019239,2]
[362307701,1748178632173,-1900.0,0.000193,7]
[362307702,1748178632182,-13625.12432393,0.00019329,2]
[362307703,1748178632192,-450.0,0.00019338,2]
[362307704,1748178632203,-150.99,0.00019339,2]
[362307705,1748178632213,-150.99,0.00019339,2]
[362307706,1748178632222,-2686.02,0.00019339,2]
[362307707,1748178632232,-327.27,0.00019339,2]
[362307708,1748178632241,-264.78,0.00019339,2]
[362307709,1748178632251,-1031.03,0.00019339,2]
[362307710,1748178632261,-173.24,0.00019339,2]
[362307711,1748178632271,-999.99,0.00019339,2]
[362307712,1748178632280,-866.07,0.00019339,2]
[362307713,1748178632290,-7760.78727034,0.00019339,2]
[362307714,1748178632301,-2239.20272966,0.00019339,2]
[362307715,1748178632310,-499.99,0.00019339,2]
[362307716,1748178632320,-8930.83392273,0.00019339,2]
[362307717,1748178632332,-1069.15607727,0.00019339,2]
[362307718,1748178632341,-17.31240273,0.00019339,7]
[362307719,1748178632352,-261.32513394,0.00019339,7]
[362307720,1748178632363,-21.35246333,0.00019339,7]
[362307721,1748178632373,-511.92943483,0.00019339,2]
[362307722,1748178632384,-1058.44493665,0.00019339,2]
[362307723,1748178632399,-6719.35038637,0.00019339,2]
[362307724,1748178632415,-1710.26524215,0.00019339,2]
[362307725,1748178632425,-488.21,0.00019339,2]
[362307726,1748178632434,-2599.31,0.00019339,2]
[362307727,1748178632444,-166.66,0.00019347,2]
[362307728,1748178632453,-2500.0,0.000194,7]
[362307729,1748178632463,-3200.0,0.000195,7]
[362307730,1748178632472,-225.0,0.00019568,2]
[362307731,1748178632482,-151.149996,0.00019599,2]
[362307732,1748178632492,-600.0,0.000196,7]
[362307733,1748178632502,-701.7892693,0.0001968,2]
[362307734,1748178632512,-600.0,0.000197,7]
[362307735,1748178632521,-250.0,0.0001973,2]
[362307736,1748178632531,-701.7892694,0.00019787,2]
[362307737,1748178632540,-420.0,0.00019799,2]
[362307738,1748178632549,-420.0,0.00019799,2]
[362307739,1748178632560,-420.0,0.00019799,2]
[362307740,1748178632569,-7636.01514711,0.00019799,2]
[362307752,1748178637999,-14973.90052819,0.00019799,2]
[362307753,1748178638011,-5110.59999998,0.00019799,2]
[362307754,1748178638054,-4116.06230995,0.00019799,2]
[362307755,1748178638114,-4118.54141477,0.00019799,2]
[362307756,1748178638125,-600.0,0.000198,7]
[362307757,1748178638135,-448.211,0.00019875,2]
[362307758,1748178638146,-419.93282306,0.00019892,2]
[362307759,1748178638156,-1000.0,0.00019893,2]
[362307760,1748178638166,-419.93282304,0.00019893,2]
[362307761,1748178638176,-419.93282304,0.00019894,2]
[362307762,1748178638186,-419.93282304,0.00019895,2]
[362307763,1748178638196,-1403.9426,0.00019895,2]
[362307764,1748178638205,-419.93282304,0.00019896,2]
[362307765,1748178638216,-419.93282304,0.00019896,2]
[362307767,1748178638225,-419.93282304,0.00019897,2]
[362307768,1748178638234,-419.93282304,0.00019898,2]
[362307769,1748178638244,-437.10483771,0.00019899,2]
[362307770,1748178638253,-419.93282304,0.00019899,2]
[362307771,1748178638263,-437.10483768,0.00019899,2]
[362307772,1748178638272,-437.10483768,0.00019899,2]
[362307774,1748178638281,-437.10483768,0.00019899,2]
[362307775,1748178638290,-437.10483768,0.00019899,2]
[362307777,1748178638299,-437.10483768,0.000199,2]
[362307779,1748178638309,-437.10483768,0.000199,2]
[362307781,1748178638318,-437.10483768,0.000199,2]
[362307783,1748178638328,-437.10483768,0.000199,2]
[362307785,1748178638337,-419.93282304,0.000199,2]
[362307786,1748178638346,-600.0,0.000199,7]
[362307788,1748178638355,-232.94567114,0.000199,2]
[362307791,1748178638365,-437.10483768,0.000199,2]
[362307793,1748178638374,-215.99456914,0.00019973,2]
[362307797,1748178638384,-276.96427571,0.00019973,2]
[362307799,1748178638394,-500.0,0.00019973,2]
[362307801,1748178638404,-501.74323714,0.00019973,2]
[362307803,1748178638413,-501.80895195,0.00019973,2]
[362307805,1748178638422,-501.37693936,0.00019973,2]
[362307807,1748178638432,-508.07306319,0.00019973,2]
[362307809,1748178638441,-283.663,0.00019973,2]
[362307811,1748178638450,-656.47496529,0.00019987,2]
[362307814,1748178638471,-985.54503471,0.00019987,2]
[362307816,1748178638481,-1492.28803276,0.00019991,2]
[362307818,1748178638490,-1492.28803276,0.00019991,2]
[362307820,1748178638499,-1492.28803276,0.00019991,2]
[362307822,1748178638509,-1492.28803276,0.00019991,2]
[362307824,1748178638518,-1492.28803276,0.00019991,2]
[362307826,1748178638528,-1492.28803276,0.00019991,2]
[362307828,1748178638537,-911.56554773,0.00019991,2]
[362307985,1748178640055,-813.5844,0.00018653,2]
[362307987,1748178640066,-580.72248503,0.00019991,2]
[362307989,1748178640076,-1492.28803276,0.00019991,2]
[362307991,1748178640085,-1492.28803276,0.00019991,2]
[362307993,1748178640095,-1198.0609718,0.00019991,2]
[362308001,1748178640165,-294.22706096,0.00019991,2]
[362308003,1748178640175,-1492.28803276,0.00019991,2]
[362308005,1748178640185,-975.74940368,0.00019991,2]
[362308010,1748178640222,-516.53862908,0.00019991,2]
[362308012,1748178640232,-1492.28803276,0.00019991,2]
[362308014,1748178640241,-1492.28803276,0.00019991,2]
[362308016,1748178640250,-1492.28803276,0.00019991,2]
[362308018,1748178640259,-1492.28803276,0.00019991,2]
[362308020,1748178640269,-420.0,0.00019992,2]
[362308022,1748178640278,-500.0,0.00019992,2]
[362308024,1748178640288,-394.81737781,0.00019992,2]
[362308026,1748178640297,-420.0,0.00019992,2]
[362308028,1748178640308,-413.49468985,0.00019992,2]
[362308030,1748178640318,-174.57647706,0.00019992,2]
[362308032,1748178640329,-420.0,0.00019992,2]
[362308034,1748178640338,-429.74911455,0.00019992,2]
[362308036,1748178640348,-312.22233737,0.00019992,2]
[362308038,1748178640357,-420.0,0.00019992,2]
[362308040,1748178640366,-420.0,0.00019992,2]
[362308042,1748178640376,-420.0,0.00019992,2]
[362308044,1748178640386,-420.0,0.00019992,2]
[362308046,1748178640395,-420.0,0.00019992,2]
[362308048,1748178640404,-420.0,0.00019992,2]
[362308050,1748178640414,-211.06963193,0.00019992,2]
[362308052,1748178640423,-449.120891,0.00019992,2]
[362308054,1748178640432,-439.2185255,0.00019992,2]
[362308055,1748178640442,-515.88562566,0.00019992,2]
[362308058,1748178640451,-541.48478256,0.00019992,2]
[362308059,1748178640460,-438.09622906,0.00019992,2]
[362308062,1748178640470,-425.31148811,0.00019992,2]
[362308063,1748178640479,-420.0,0.00019992,2]
[362308065,1748178640489,-422.57305271,0.00019992,2]
[362308067,1748178640498,-191.43851397,0.00019992,2]
[362308069,1748178640507,-420.0,0.00019992,2]
[362308071,1748178640517,-420.0,0.00019992,2]
[362308073,1748178640526,-168.03335773,0.00019992,2]
[362308075,1748178640535,-445.34054597,0.00019992,2]
[362308078,1748178640545,-420.0,0.00019992,2]
[362308080,1748178640555,-420.0,0.00019992,2]
[362308081,1748178640564,-420.0,0.00019992,2]
[362308083,1748178640574,-420.0,0.00019992,2]
[362308085,1748178640583,-420.0,0.00019992,2]
[362308087,1748178640592,-420.0,0.00019992,2]
[362308089,1748178640601,-445.4080515,0.00019992,2]
[362308091,1748178640611,-420.0,0.00019992,2]
[362308093,1748178640620,-423.12433536,0.00019992,2]
[362308095,1748178640631,-420.0,0.00019992,2]
[362308097,1748178640640,-420.0,0.00019992,2]
[362308099,1748178640649,-426.41842371,0.00019992,2]
[362308101,1748178640658,-420.0,0.00019992,2]
[362308103,1748178640668,-420.0,0.00019992,2]
[362308105,1748178640677,-420.0,0.00019992,2]
[362308107,1748178640686,-444.05560958,0.00019992,2]
[362308109,1748178640695,-420.0,0.00019992,2]
[362308111,1748178640705,-341.64256285,0.00019992,2]
[362308118,1748178640911,-420.0,0.00019992,2]
[362308119,1748178640920,-155.61790181,0.00019992,2]
[362308121,1748178640932,-420.0,0.00019992,2]
[362308123,1748178640941,-430.00645138,0.00019992,2]
[362308125,1748178640951,-420.0,0.00019992,2]
[362308127,1748178640961,-420.0,0.00019992,2]
[362308129,1748178640973,-432.45549521,0.00019992,2]
[362308131,1748178640983,-424.79653389,0.00019992,2]
[362308133,1748178640993,-420.0,0.00019992,2]
[362308135,1748178641003,-420.0,0.00019992,2]
[362308137,1748178641013,-420.0,0.00019992,2]
[362308139,1748178641022,-430.23574783,0.00019992,2]
[362308141,1748178641031,-420.0,0.00019992,2]
[362308143,1748178641041,-427.11353859,0.00019992,2]
[362308145,1748178641051,-445.14486074,0.00019992,2]
[362308147,1748178641060,-433.55211286,0.00019992,2]
[362308149,1748178641069,-427.3296742,0.00019992,2]
[362308151,1748178641079,-435.76487929,0.00019992,2]
[362308154,1748178641088,-166.65884545,0.00019992,2]
[362308156,1748178641099,-448.94804967,0.00019992,2]
[362308158,1748178641108,-420.0,0.00019992,2]
[362308160,1748178641117,-434.23778998,0.00019992,2]
[362308162,1748178641127,-434.26241402,0.00019992,2]
[362308164,1748178641136,-432.66554135,0.00019992,2]
[362308166,1748178641145,-420.0,0.00019992,2]
[362308168,1748178641155,-431.22738514,0.00019992,2]
[362308170,1748178641165,-423.4348262,0.00019992,2]
[362308172,1748178641174,-437.90878237,0.00019992,2]
[362308174,1748178641184,-420.0,0.00019992,2]
[362308176,1748178641193,-410.0,0.00019992,2]
[362308177,1748178641203,-420.0,0.00019992,2]
[362308179,1748178641212,-449.48695921,0.00019992,2]
[362308181,1748178641222,-441.82050445,0.00019992,2]
[362308183,1748178641231,-420.0,0.00019992,2]
[362308185,1748178641240,-440.28478211,0.00019992,2]
[362308188,1748178641250,-435.49340675,0.00019992,2]
[362308190,1748178641259,-510.58,0.00019995,2]
[362308192,1748178641269,-420.0,0.00019995,2]
[362308194,1748178641279,-500.0,0.00019995,2]
[362308196,1748178641288,-420.0,0.00019995,2]
[362308197,1748178641297,-420.0,0.00019995,2]
[362308199,1748178641307,-519.53913246,0.00019995,2]
[362308201,1748178641316,-500.0,0.00019995,2]
[362308204,1748178641326,-420.0,0.00019995,2]
[362308206,1748178641336,-420.0,0.00019995,2]
[362308208,1748178641346,-420.0,0.00019995,2]
[362308210,1748178641355,-420.0,0.00019995,2]
[362308212,1748178641365,-420.0,0.00019995,2]
[362308214,1748178641376,-420.0,0.00019995,2]
[362308216,1748178641385,-420.0,0.00019995,2]
[362308218,1748178641394,-420.0,0.00019995,2]
[362308220,1748178641404,-420.0,0.00019995,2]
[362308222,1748178641413,-420.0,0.00019995,2]
[362308224,1748178641423,-420.0,0.00019995,2]
[362308226,1748178641432,-420.0,0.00019995,2]
[362308228,1748178641441,-420.0,0.00019995,2]
[362308230,1748178641451,-151.0,0.00019996,2]
[362308232,1748178641460,-420.0,0.00019996,2]
[362308234,1748178641470,-420.0,0.00019996,2]
[362308236,1748178641479,-420.0,0.00019996,2]
[362308238,1748178641489,-420.0,0.00019996,2]
[362308240,1748178641498,-420.0,0.00019996,2]
[362308242,1748178641507,-420.0,0.00019996,2]
[362308244,1748178641516,-420.0,0.00019996,2]
[362308246,1748178641525,-420.0,0.00019996,2]
[362308248,1748178641535,-420.0,0.00019996,2]
[362308250,1748178641544,-420.0,0.00019996,2]
[362308252,1748178641555,-420.0,0.00019996,2]
[362308254,1748178641565,-420.0,0.00019996,2]
[362308256,1748178641574,-420.0,0.00019996,2]
[362308258,1748178641583,-484.493561,0.00019996,2]
[362308260,1748178641592,-420.0,0.00019997,2]
[362308262,1748178641602,-500.0,0.00019997,2]
[362308264,1748178641611,-334.49022393,0.00019997,2]
[362308266,1748178641620,-420.0,0.00019997,2]
[362308268,1748178641629,-420.0,0.00019997,2]
[362308270,1748178641638,-420.0,0.00019997,2]
[362308272,1748178641648,-420.0,0.00019997,2]
[362308274,1748178641657,-491.34480825,0.00019997,2]
[362308276,1748178641666,-420.0,0.00019997,2]
[362308278,1748178641675,-420.0,0.00019997,2]
[362308280,1748178641685,-438.63360775,0.00019997,2]
[362308281,1748178641695,-438.78801075,0.00019997,2]
[362308283,1748178641705,-427.98438562,0.00019997,2]
[362308285,1748178641714,-435.68314988,0.00019997,2]
[362308287,1748178641723,-436.09699178,0.00019997,2]
[362308289,1748178641733,-445.3603311,0.00019997,2]
[362308292,1748178641743,-432.29479473,0.00019997,2]
[362308293,1748178641752,-433.93639543,0.00019997,2]
[362308296,1748178641761,-400.96916079,0.00019997,2]
[362308297,1748178641771,-420.0,0.00019997,2]
[362308299,1748178641780,-420.0,0.00019997,2]
[362308302,1748178641790,-425.87187666,0.00019997,2]
[362308304,1748178641799,-372.88393607,0.00019997,2]
[362308306,1748178641809,-420.0,0.00019997,2]
[362308308,1748178641819,-159.4144381,0.00019997,2]
[362308310,1748178641828,-322.1940437,0.00019997,2]
[362308312,1748178641837,-420.0,0.00019997,2]
[362308314,1748178641846,-420.0,0.00019997,2]
[362308315,1748178641855,-739.86,0.00019997,2]
[362308317,1748178641864,-420.0,0.00019997,2]
[362308319,1748178641873,-420.0,0.00019997,2]
[362308321,1748178641883,-707.25,0.00019997,2]
[362308324,1748178641895,-420.0,0.00019997,2]
[362308325,1748178641904,-420.0,0.00019997,2]
[362308327,1748178641913,-420.0,0.00019997,2]
[362308329,1748178641923,-420.0,0.00019997,2]
[362308332,1748178641935,-420.0,0.00019997,2]
[362308333,1748178641945,-420.0,0.00019997,2]
[362308335,1748178641954,-420.0,0.00019997,2]
[362308337,1748178641963,-420.0,0.00019997,2]
[362308339,1748178641972,-420.0,0.00019997,2]
[362308341,1748178641982,-420.0,0.00019997,2]
[362308343,1748178641991,-420.0,0.00019997,2]
[362308345,1748178642000,-432.81927525,0.00019997,2]
[362308347,1748178642015,-481.69029412,0.00019997,2]
[362308349,1748178642024,-420.58508541,0.00019997,2]
[362308351,1748178642034,-420.0,0.00019997,2]
[362308353,1748178642043,-420.0,0.00019997,2]
[362308355,1748178642053,-420.0,0.00019997,2]
[362308357,1748178642062,-420.0,0.00019997,2]
[362308359,1748178642071,-420.0,0.00019997,2]
[362308362,1748178642081,-500.0,0.00019998,2]
[362308363,1748178642091,-500.0,0.00019998,2]
[362308365,1748178642100,-217.01777814,0.00019998,2]
[362308367,1748178642109,-420.0,0.00019998,2]
[362308369,1748178642118,-420.0,0.00019998,2]
[362308371,1748178642127,-420.0,0.00019998,2]
[362308373,1748178642136,-420.0,0.00019998,2]
[362308375,1748178642146,-420.0,0.00019998,2]
[362308378,1748178642156,-391.28350325,0.00019998,2]
[362308379,1748178642165,-420.0,0.00019998,2]
[362308381,1748178642174,-420.0,0.00019998,2]
[362308383,1748178642184,-420.0,0.00019998,2]
[362308385,1748178642193,-420.0,0.00019998,2]
[362308387,1748178642202,-319.90778846,0.00019998,2]
[362308389,1748178642213,-420.0,0.00019998,2]
[362308391,1748178642224,-420.0,0.00019998,2]
[362308393,1748178642234,-420.0,0.00019998,2]
[362308395,1748178642243,-427.8137323,0.00019998,2]
[362308397,1748178642252,-420.0,0.00019998,2]
[362308399,1748178642262,-427.90132582,0.00019998,2]
[362308401,1748178642271,-542.59335915,0.00019998,2]
[362308403,1748178642281,-426.15469279,0.00019998,2]
[362308405,1748178642290,-420.0,0.00019998,2]
[362308407,1748178642299,-420.0,0.00019998,2]
[362308409,1748178642309,-540.46160155,0.00019998,2]
[362308411,1748178642318,-166.45013626,0.00019998,2]
[362308413,1748178642327,-420.0,0.00019998,2]
[362308415,1748178642337,-420.0,0.00019998,2]
[362308417,1748178642346,-420.0,0.00019998,2]
[362308419,1748178642355,-476.38745003,0.00019998,2]
[362308421,1748178642364,-428.39932387,0.00019998,2]
[362308423,1748178642374,-420.0,0.00019998,2]
[362308426,1748178642383,-436.53411395,0.00019998,2]
[362308428,1748178642393,-487.44849483,0.00019998,2]
[362308429,1748178642402,-420.0,0.00019998,2]
[362308431,1748178642411,-423.97634684,0.00019998,2]
[362308434,1748178642420,-422.83013426,0.00019998,2]
[362308435,1748178642430,-420.0,0.00019998,2]
[362308437,1748178642439,-420.0,0.00019998,2]
[362308439,1748178642449,-420.0,0.00019998,2]
[362308442,1748178642458,-454.1233153,0.00019998,2]
[362308443,1748178642468,-420.0,0.00019998,2]
[362308446,1748178642478,-420.0,0.00019998,2]
[362308447,1748178642487,-420.0,0.00019998,2]
[362308449,1748178642496,-314.17127137,0.00019998,2]
[362308451,1748178642505,-420.0,0.00019998,2]
[362308453,1748178642514,-420.0,0.00019998,2]
[362308455,1748178642523,-420.0,0.00019998,2]
[362308457,1748178642533,-420.0,0.00019998,2]
[362308459,1748178642542,-420.00000001,0.00019998,2]
[362308461,1748178642551,-420.0,0.00019998,2]
[362308463,1748178642561,-420.0,0.00019998,2]
[362308465,1748178642570,-420.0,0.00019998,2]
[362308467,1748178642579,-420.0,0.00019998,2]
[362308469,1748178642588,-293.92896784,0.00019998,2]
[362308471,1748178642598,-480.3,0.00019998,2]
[362308473,1748178642607,-420.0,0.00019998,2]
[362308475,1748178642616,-420.0,0.00019998,2]
[362308477,1748178642626,-483.02207137,0.00019998,2]
[362308479,1748178642635,-420.0,0.00019998,2]
[362308481,1748178642645,-420.0,0.00019998,2]
[362308483,1748178642654,-420.0,0.00019998,2]
[362308485,1748178642663,-420.0,0.00019998,2]
[362308487,1748178642672,-420.0,0.00019998,2]
[362308489,1748178642681,-420.0,0.00019998,2]
[362308491,1748178642690,-420.0,0.00019998,2]
[362308493,1748178642699,-285.39802636,0.00019998,2]
[362308495,1748178642708,-420.0,0.00019998,2]
[362308497,1748178642718,-420.0,0.00019998,2]
[362308499,1748178642728,-157.88776984,0.00019998,2]
[362308501,1748178642738,-420.0,0.00019998,2]
[362308503,1748178642747,-420.0,0.00019998,2]
[362308505,1748178642757,-420.0,0.00019998,2]
[362308508,1748178642768,-420.0,0.00019998,2]
[362308511,1748178642778,-420.0,0.00019998,2]
[362308514,1748178642788,-420.0,0.00019998,2]
[362308516,1748178642797,-420.0,0.00019998,2]
[362308518,1748178642806,-568.41220046,0.00019998,2]
[362308520,1748178642815,-420.0,0.00019998,2]
[362308522,1748178642825,-420.0,0.00019998,2]
[362308524,1748178642834,-420.0,0.00019998,2]
[362308526,1748178642843,-420.0,0.00019998,2]
[362308528,1748178642852,-420.0,0.00019998,2]
[362308530,1748178642862,-420.0,0.00019998,2]
[362308532,1748178642871,-435.32747524,0.00019998,2]
[362308534,1748178642881,-154.003582,0.00019999,2]
[362308536,1748178642890,-500.0,0.00019999,2]
[362308538,1748178642899,-500.0,0.00019999,2]
[362308541,1748178642909,-500.0,0.00019999,2]
[362308543,1748178642918,-500.0,0.00019999,2]
[362308545,1748178642927,-500.0,0.00019999,2]
[362308548,1748178642940,-500.0,0.00019999,2]
[362308551,1748178642949,-472.11780133,0.00019999,2]
[362308554,1748178642958,-420.0,0.00019999,2]
[362308558,1748178642968,-396.82100708,0.00019999,2]
[362308561,1748178642979,-420.0,0.00019999,2]
[362308563,1748178642988,-420.0,0.00019999,2]
[362308566,1748178642997,-420.0,0.00019999,2]
[362308568,1748178643007,-420.0,0.00019999,2]
[362308571,1748178643018,-420.0,0.00019999,2]
[362308574,1748178643028,-420.0,0.00019999,2]
[362308576,1748178643037,-420.0,0.00019999,2]
[362308578,1748178643047,-420.0,0.00019999,2]
[362308580,1748178643056,-420.0,0.00019999,2]
[362308582,1748178643065,-420.0,0.00019999,2]
[362308584,1748178643074,-420.0,0.00019999,2]
[362308586,1748178643084,-420.0,0.00019999,2]
[362308588,1748178643093,-420.0,0.00019999,2]
[362308590,1748178643103,-420.0,0.00019999,2]
[362308592,1748178643112,-420.0,0.00019999,2]
[362308594,1748178643121,-532.46644996,0.00019999,2]
[362308596,1748178643131,-420.0,0.00019999,2]
[362308598,1748178643140,-420.0,0.00019999,2]
[362308600,1748178643149,-420.0,0.00019999,2]
[362308602,1748178643159,-420.0,0.00019999,2]
[362308604,1748178643168,-420.0,0.00019999,2]
[362308606,1748178643178,-420.0,0.00019999,2]
[362308608,1748178643187,-420.0,0.00019999,2]
[362308610,1748178643196,-276.41541697,0.00019999,2]
[362308612,1748178643205,-510.58,0.00019999,2]
[362308614,1748178643214,-510.58,0.00019999,2]
[362308616,1748178643224,-510.58,0.00019999,2]
[362308618,1748178643234,-510.58,0.00019999,2]
[362308620,1748178643243,-510.58,0.00019999,2]
[362308622,1748178643252,-510.58,0.00019999,2]
[362308624,1748178643262,-510.58,0.00019999,2]
[362308626,1748178643271,-510.58,0.00019999,2]
[362308628,1748178643281,-510.58,0.00019999,2]
[362308630,1748178643289,-510.58,0.00019999,2]
[362308632,1748178643299,-510.58,0.00019999,2]
[362308633,1748178643308,-510.58,0.00019999,2]
[362308635,1748178643317,-510.58,0.00019999,2]
[362308637,1748178643326,-510.58,0.00019999,2]
[362308639,1748178643335,-510.58,0.00019999,2]
[362308641,1748178643344,-510.58,0.00019999,2]
[362308642,1748178643353,-510.58,0.00019999,2]
[362308643,1748178643362,-510.58,0.00019999,2]
[362308644,1748178643372,-510.58,0.00019999,2]
[362308645,1748178643381,-510.58,0.00019999,2]
[362308646,1748178643390,-510.58,0.00019999,2]
[362308647,1748178643399,-510.58,0.00019999,2]
[362308648,1748178643408,-510.77288644,0.00019999,2]